[Event "3rd VIZAG GM-Open 2022"]
[Site "Visakapatnam"]
[Date "2022.06.16"]
[Round "9.11"]
[White "Jubin Jimmy"]
[Black "Laxman, R.R."]
[Result "1/2-1/2"]
[ECO "E32"]
[WhiteElo "2259"]
[BlackElo "2420"]
[Annotator "TA"]
[PlyCount "60"]
[EventDate "2022.06.13"]
[EventType "swiss"]
[EventCountry "IND"]
[SourceTitle "playchess.com"]
[Source "ChessBase"]
[SourceQuality "1"]
[TimeControl "5400+30"]

{[%evp 14,60,0,0,-3,0,0,0,0,-15,-8,-9,0,-10,15,4,7,0,0,-7,11,0,-12,0,0,-15,0,-29,-18,-19,-22,-14,-11,-20,11,-43,17,-10,15,-55,0,0,7,-6,9,20,53,52,60]} 1. d4 {[%emt 0:00:07]} Nf6 {[%emt 0:00:15]} 2. c4 {[%emt 0:00:14]} e6 {[%emt 0:00:08]} 3. Nc3 {[%emt 0:00:08]} Bb4 {[%emt 0:00:10]} 4. Qc2 {[%emt 0:00:05]} b6 {[%emt 0:01:28]} 5. a3 {[%emt 0:00:20]} Bxc3+ {[%emt 0:00:10]} 6. Qxc3 {[%emt 0:00:10]} Bb7 {[%emt 0:00:06]} 7. Bg5 {[%emt 0:00:10][%cal Bc1g5,Bg5h4,Bh4g3][%mdl 32]} h6 {[%emt 0:00:26]} 8. Bh4 {[%emt 0:00:23]} g5 $1 {[%emt 0:00:10] 8...g5 scores better than 8...d6. E32: Nimzo-Indian: Classical (4 Qc2): 4...0-0.} 9. Bg3 {[%emt 0:00:04]} Ne4 {[%emt 0:00:06]} 10. Qc2 {[%emt 0:00:03]} d6 {[%emt 0:00:19] The position is equal. 10...c5 is vanishing.} 11. e3 {[%emt 0:00:59]} Nd7 {[%emt 0:01:28]} 12. f3 {[%emt 0:01:15]} Nxg3 {[%emt 0:00:27]} 13. hxg3 {[%emt 0:00:05]} f5 {[%emt 0:01:39]} 14. Bd3 {[%emt 0:02:04]} Qf6 {[%emt 0:00:31]} 15. Ne2 {[%emt 0:00:10]} O-O-O {[%emt 0:00:42]} 16. O-O-O {[%emt 0:00:22][%cal Od4d5]} h5 {[%emt 0:00:15]} 17. Nc3 {[%emt 0:02:23] [#]} Kb8 $146 {[%emt 0:00:28]} ({Predecessor:} 17... f4 18. gxf4 gxf4 19. Be4 Ba6 20. Qa4 Nb8 21. exf4 Qxf4+ 22. Kb1 Rdg8 23. Rc1 Rxg2 24. Rxh5 {½-½ (34) Chovan,M (2269)-Deac,B (2579) Pardubice 2017}) 18. Kb1 {[%emt 0:03:51]} g4 {[%emt 0:02:18]} 19. Qf2 {[%emt 0:02:53]} Rdg8 {[%emt 0:02:07]} 20. Ne2 {[%emt 0:03:58]} gxf3 {[%emt 0:03:20]} 21. gxf3 {[%emt 0:00:06]} e5 {[%emt 0:00:10]} 22. Bc2 {[%emt 0:05:51]} Qf7 {[%emt 0:02:49]} 23. Rh4 {[%emt 0:12:01]} Rf8 {[%emt 0:05:27]} 24. Nc3 {[%emt 0:11:06]} ({Better is} 24. d5 $11) 24... Qe8 {[%emt 0:00:46]} (24... exd4 $15 25. exd4 Qxc4) 25. Ne2 {[%emt 0:00:30]} Qf7 {[%emt 0:00:04]} 26. Nc3 {[%emt 0:00:07]} (26. d5 $11) 26... Qg8 {[%emt 0:01:07]} ({Black should play} 26... exd4 $1 $15 27. exd4 Qxc4) 27. d5 {[%emt 0:01:07]} Qg5 {[%emt 0:00:31]} 28. f4 {[%emt 0:01:50]} Qg6 {[%emt 0:00:24]} 29. Rdh1 {[%emt 0:00:50][%cal Og3g4]} e4 {[%emt 0:02:41]} 30. Ne2 {[%emt 0:00:46]} Rfg8 {[%emt 0:00:54] Weighted Error Value: White=0.15 (very precise) /Black=0.15 (very precise)} 1/2-1/2

[Event "3rd VIZAG GM-Open 2022"]
[Site "Visakapatnam"]
[Date "2022.06.16"]
[Round "9.12"]
[White "Ajay Santhosh Parvathareddy"]
[Black "Abdurakhmonov, Mukhammadali"]
[Result "0-1"]
[ECO "A47"]
[WhiteElo "1563"]
[BlackElo "2308"]
[Annotator "TA"]
[PlyCount "124"]
[EventDate "2022.06.13"]
[EventType "swiss"]
[EventCountry "IND"]
[SourceTitle "playchess.com"]
[Source "ChessBase"]
[SourceQuality "1"]
[TimeControl "5400+30"]

{[%evp 12,124,12,6,47,47,43,41,51,16,18,-9,-2,-9,0,0,0,0,0,0,0,-60,-46,-70,-65,-109,-115,-237,-233,-314,-268,-289,-293,-267,-159,-150,-152,-150,-156,-202,-201,-196,-208,-208,-208,-208,-208,-208,-208,-208,-208,-208,-203,-193,-193,-193,-193,-244,-242,-220,-200,-301,-295,-283,-208,-249,-249,-249,-248,-287,-295,-282,-273,-258,-255,-391,-369,-358,-358,-351,-343,-541,-524,-533,-505,-535,-531,-529,-519,-493,-479,-453,-453,-563,-481,-565,-502,-644,-578,-839,-756,-2385,-1037,-29978,-29979,-29973,-29974,-29981,-29978,-29980,-29982,-29982,-29983,-29983,-29984]} 1. d4 {[%emt 0:00:01]} Nf6 {[%emt 0:00:50]} 2. Nf3 {[%emt 0:00:06]} e6 {[%emt 0:02:10]} 3. e3 {[%emt 0:00:06]} b6 {[%emt 0:00:35]} 4. Bd3 {[%emt 0:00:23]} Bb7 {[%emt 0:00:07]} 5. Nbd2 {[%emt 0:00:08]} c5 {[%emt 0:03:37]} 6. O-O {[%emt 0:00:19]} Be7 {[%emt 0:00:39]} 7. c3 {[%emt 0:02:00]} Ba6 {[%emt 0:03:19] A47: 1 d4 Nf6 2 Nf3 b6: Torre, London and Colle Systems.} 8. Bxa6 {[%emt 0:00:40]} Nxa6 {[%emt 0:00:02][%cal Bb8a6,Ba6b4,Bb4d3][%mdl 32]} 9. e4 {[%emt 0:00:22]} cxd4 {[%emt 0:01:10] White is slightly better.} 10. cxd4 {[%emt 0:00:19]} O-O {[%emt 0:00:08]} 11. e5 {[%emt 0:04:51]} Nd5 {[%emt 0:00:06]} 12. Ne4 {[%emt 0:00:35]} h6 {[%emt 0:00:54] [#]} 13. Ne1 $146 {[%emt 0:03:40]} ({Predecessor:} 13. Bd2 Nac7 14. Rc1 d6 15. Qa4 dxe5 16. dxe5 Qe8 17. Qb3 Na6 18. Qc4 Nc5 19. Nxc5 Bxc5 20. b4 {0-1 (49) Baciu,D (2127)-Ziaziulkina,N (2293) Chotowa 2010}) 13... Nab4 {[%emt 0:03:51]} 14. Nd3 {[%emt 0:02:00]} Nxd3 {[%emt 0:04:33]} 15. Qxd3 {[%emt 0:00:14]} Rc8 {[%emt 0:00:04]} 16. a3 {[%emt 0:03:25]} ({White should play} 16. Bd2 $11) 16... Qc7 $1 $15 {[%emt 0:01:00]} 17. Qg3 {[%emt 0:01:54]} Kh8 {[%emt 0:02:29]} 18. Qh3 {[%emt 0:00:11][%cal Oc1h6]} Qc2 $1 {[%emt 0:01:34]} 19. f3 {[%emt 0:12:06] White does not recover from this.} (19. Qg4 $17) 19... Qd3 $19 {[%emt 0:02:07]} 20. Qh5 {[%emt 0:06:10]} Kh7 {[%emt 0:05:11]} 21. Nf2 {[%emt 0:09:38]} Qxd4 {[%emt 0:00:11]} 22. Rd1 {[%emt 0:00:09]} Qh4 {[%emt 0:01:14]} ({Black should try} 22... Qa4 $19 {...Bc5 is the strong threat.} 23. b4 Rxc1 $1 {[%mdl 512]} 24. Rdxc1 Nf4) 23. Qxh4 $17 {[%emt 0:01:03]} Bxh4 {[%emt 0:00:01]} 24. Nd3 {[%emt 0:01:38]} Rc2 {[%emt 0:14:02] Black is more active.} 25. Nb4 {[%emt 0:01:54] [#]} (25. Bd2 $17) 25... Nxb4 $1 $19 {[%emt 0:00:15]} 26. axb4 {[%emt 0:00:06]} Rfc8 {[%emt 0:00:11]} 27. g3 {[%emt 0:01:35]} Be7 {[%emt 0:00:23]} 28. Bd2 {[%emt 0:02:00]} Rxb2 {[%emt 0:04:32] Hoping for ...Rcc2.} 29. Rxa7 {[%emt 0:00:08]} Rcc2 {[%emt 0:00:05]} (29... Bxb4 30. Bxb4 Rxb4 31. Rd2 $17) 30. Rxd7 {[%emt 0:00:08]} Bxb4 {[%emt 0:00:06]} 31. Bxb4 {[%emt 0:01:19]} Rxb4 {[%emt 0:00:01]} 32. R1d2 {[%emt 0:02:09]} Rxd2 {[%emt 0:05:51]} 33. Rxd2 {[%emt 0:00:15][%mdl 4096] Endgame KR-KR} g5 {[%emt 0:00:10]} 34. g4 {[%emt 0:02:41]} (34. Kf2 $142) 34... Kg6 {[%emt 0:00:40]} 35. Kf2 {[%emt 0:01:54]} b5 {[%emt 0:00:49]} 36. h3 {[%emt 0:03:35]} (36. Ke3 $142) 36... Rb3 {[%emt 0:00:40]} 37. Rd8 {[%emt 0:00:50]} Rc3 {[%emt 0:00:07]} 38. Rd4 {[%emt 0:38:58]} Rc5 {[%emt 0:00:09]} 39. Re4 {[%emt 0:00:00]} Kg7 {[%emt 0:00:05]} 40. Ke3 {[%emt 0:00:00]} Rc3+ {[%emt 0:00:44]} 41. Ke2 {[%emt 0:00:00]} Kf8 {[%emt 0:00:05]} 42. Rb4 {[%emt 0:00:00]} Rc5 {[%emt 0:00:06]} 43. Re4 {[%emt 0:00:00]} (43. f4 {was necessary.}) 43... Ke7 {[%emt 0:00:05]} 44. Kd3 {[%emt 0:00:00]} Kd7 {[%emt 0:00:15]} 45. f4 {[%emt 0:00:00]} Kc6 {[%emt 0:01:37][%cal Oc5c4] aiming for ...Rc4!} 46. fxg5 {[%emt 0:00:00]} (46. f5 {is a better defense.}) 46... hxg5 {[%emt 0:00:07]} 47. Re2 {[%emt 0:00:00]} Kd5 {[%emt 0:00:35]} 48. Rf2 {[%emt 0:00:00]} Rc7 {[%emt 0:00:05]} ({Inferior is} 48... b4 49. Rxf7 Rc3+ 50. Kd2 $17) 49. Rb2 {[%emt 0:00:00]} Rb7 {[%emt 0:00:25]} 50. Re2 {[%emt 0:00:00]} Ra7 {[%emt 0:00:05] ( -> ...Ra3+)} 51. Rb2 {[%emt 0:00:00]} Ra3+ {[%emt 0:00:03]} 52. Ke2 {[%emt 0:00:00]} Ra5 {[%emt 0:00:35]} 53. Rc2 {[%emt 0:00:00]} Kxe5 {[%emt 0:00:08] White must now prevent ...b4.} 54. Rc7 {[%emt 0:00:00]} f5 {[%emt 0:00:20]} 55. h4 {[%emt 0:00:00]} gxh4 {[%emt 0:00:30][%cal Bg5h4,Bh4h3][%mdl 32]} 56. g5 {[%emt 0:00:00]} Ra2+ {[%emt 0:00:11]} 57. Kf1 {[%emt 0:00:00]} h3 {[%emt 0:00:21] Black mates.} 58. Kg1 {[%emt 0:00:00]} Rg2+ {[%emt 0:00:07]} 59. Kh1 {[%emt 0:00:00]} Rxg5 {[%emt 0:00:15]} 60. Rc5+ {[%emt 0:00:00]} Kf4 {[%emt 0:00:18]} 61. Rxb5 {[%emt 0:00:00]} e5 {[%emt 0:00:05][%cal Be6e5,Be5e4][%mdl 32]} 62. Kh2 {[%emt 0:00:00]} e4 {[%emt 0:00:08] Weighted Error Value: White=0.51/Black=0.15 (very precise)} 0-1

[Event "3rd VIZAG GM-Open 2022"]
[Site "Visakapatnam"]
[Date "2022.06.16"]
[Round "9.13"]
[White "Azaladze, Shota"]
[Black "Velpula Sarayu"]
[Result "1-0"]
[ECO "E65"]
[WhiteElo "2420"]
[BlackElo "1845"]
[Annotator "TA"]
[PlyCount "93"]
[EventDate "2022.06.13"]
[EventType "swiss"]
[EventCountry "IND"]
[SourceTitle "playchess.com"]
[Source "ChessBase"]
[SourceQuality "1"]
[TimeControl "5400+30"]

{[%evp 22,93,-11,-20,-15,0,15,9,29,31,29,33,55,52,55,58,60,49,54,60,82,82,79,51,45,27,26,28,29,29,27,29,24,24,28,22,40,18,18,14,25,19,62,57,347,350,343,327,372,370,452,405,389,385,668,645,655,635,1008,935,855,824,1261,1181,910,790,775,752,1220,878,973,942,2335,1153]} 1. Nf3 {[%emt 1:31:00]} Nf6 {[%emt 1:31:00]} 2. g3 {[%emt 0:00:30]} g6 {[%emt 0:00:30]} 3. Bg2 {[%emt 0:00:30]} Bg7 {[%emt 0:00:30]} 4. O-O {[%emt 0:00:30]} O-O {[%emt 0:00:30]} 5. d4 {[%emt 0:00:30]} d6 {[%emt 0:00:30]} 6. c4 {[%emt 0:00:30]} c5 {[%emt 0:00:30]} 7. Nc3 {[%emt 0:00:30]} Nc6 {[%emt 0:00:30]} 8. dxc5 {[%emt 0:00:30]} dxc5 {[%emt 0:00:30]} 9. Be3 {[%emt 0:00:30]} Qa5 {[%emt 0:00:30]} 10. Qa4 {[%emt 0:00:30]} Qxa4 {[%emt 0:00:30]} 11. Nxa4 {[%emt 0:00:30]} b6 {[%emt 0:00:30]} 12. Rad1 {[%emt 0:00:30]} Bd7 {[%emt 0:00:30] E65: King's Indian: Fianchetto: 6...c5 7 0-0 without d5 by White.} 13. Nc3 {[%emt 0:00:30]} Rad8 {[%emt 0:00:30]} 14. Bf4 {[%emt 0:00:30] [#]} Rc8 $146 {[%emt 0:00:30] The position is equal.} ({Predecessor:} 14... Bc8 15. Ne5 Na5 16. Nc6 Nxc6 17. Bxc6 Be6 18. b3 Nh5 19. Nd5 Bxd5 20. Bxd5 Nxf4 21. gxf4 {½-½ (40) Grabarczyk,M (2445)-Kryvoruchko,Y (2676) Warsaw 2012}) 15. Ne5 {[%emt 0:00:30]} Nxe5 {[%emt 0:00:30]} 16. Bxe5 {[%emt 0:00:30]} Bc6 {[%emt 0:00:30]} 17. Rd3 {[%emt 0:00:30]} Bxg2 {[%emt 0:00:30]} 18. Kxg2 {[%emt 0:00:30]} Rfd8 {[%emt 0:00:30]} 19. Rfd1 $1 {[%emt 0:00:30][%cal Bf1d1,Bd1d3,Bd3a3][%mdl 32]} Rxd3 {[%emt 0:00:30]} 20. Rxd3 {[%emt 0:00:30]} Ne8 {[%emt 0:00:30] [#]} 21. Nd5 $1 {[%emt 0:00:30]} Bf8 {[%emt 0:00:30]} 22. Ra3 {[%emt 0:00:30] 0x0.000bd6ecb885dp-1022s more active pieces.} e6 {[%emt 0:00:30]} 23. Nf6+ {[%emt 0:00:30]} Nxf6 {[%emt 0:00:30]} 24. Bxf6 $11 {[%emt 0:00:30][%mdl 4096] Endgame KRB-KRB} Rc7 {[%emt 0:00:30]} 25. Rd3 {[%emt 0:00:30] [#] Strongly threatening Rd8.} Be7 {[%emt 0:00:30] Inhibits Rd8+.} 26. Bxe7 {[%emt 0:00:30]} Rxe7 {[%emt 0:00:30] KR-KR} 27. Rd8+ {[%emt 0:00:30]} Kg7 {[%emt 0:00:30]} 28. g4 {[%emt 0:00:30]} h6 {[%emt 0:00:30]} 29. b3 {[%emt 0:00:30]} f5 {[%emt 0:00:30]} 30. Kg3 {[%emt 0:00:30]} Kf6 {[%emt 0:00:30]} 31. h4 {[%emt 0:00:30]} e5 {[%emt 0:00:30]} 32. e3 {[%emt 0:00:30]} Rc7 $2 {[%emt 0:00:30][%mdl 8192] Loses the game.} ({Black should play} 32... fxg4 $14 33. Kxg4 h5+ 34. Kg3 Rf7) 33. Rd6+ $18 {[%emt 0:00:30]} Kg7 {[%emt 0:00:30]} 34. h5 {[%emt 0:00:30]} gxh5 {[%emt 0:00:30]} 35. gxf5 {[%emt 0:00:30]} Kh7 {[%emt 0:00:30]} 36. Re6 {[%emt 0:00:30]} Rg7+ {[%emt 0:00:30]} 37. Kh3 {[%emt 0:00:30]} Rf7 $2 {[%emt 0:00:30]} (37... a5 38. Rxb6 Rd7) 38. e4 {[%emt 0:00:30][%cal Be3e4,Be4e5][%mdl 32] White is clearly winning.} Kg7 {[%emt 0:00:30]} 39. Rxe5 {[%emt 0:00:30]} Kf6 {[%emt 0:00:30]} 40. f4 {[%emt 0:00:30]} Rd7 {[%emt 0:00:30]} 41. Re6+ {[%emt 0:00:30]} Kg7 {[%emt 0:00:30]} 42. f6+ {[%emt 0:00:30]} Kg6 {[%emt 0:00:30]} 43. e5 {[%emt 0:00:30]} Rd3+ {[%emt 0:00:30]} 44. Kg2 {[%emt 0:00:30] Hoping for Re8.} Rd2+ {[%emt 0:00:30]} 45. Kg3 {[%emt 0:00:30]} Rd3+ {[%emt 0:00:30]} 46. Kf2 {[%emt 0:00:30]} h4 {[%emt 0:00:30]} 47. Re7 {[%emt 0:00:30] Weighted Error Value: White=0.09 (flawless) /Black=0.46} (47. f5+ $142 Kxf5 48. f7 Kxe6 49. f8=Q Kxe5 50. Qe7+ Kf4 51. Qf6+ Ke4 52. Qxh4+ Kf5 53. Qh5+ Ke4 54. Qg6+ Kd4 55. Qg7+ Ke4 56. Qg6+ Kd4 57. Ke2 Re3+ 58. Kd2) 1-0

[Event "3rd VIZAG GM-Open 2022"]
[Site "Visakapatnam"]
[Date "2022.06.16"]
[Round "9.14"]
[White "Vrashank Chouhan"]
[Black "Hossain, Enamul"]
[Result "0-1"]
[ECO "D02"]
[WhiteElo "2080"]
[BlackElo "2413"]
[Annotator "TA"]
[PlyCount "100"]
[EventDate "2022.06.13"]
[EventType "swiss"]
[EventCountry "IND"]
[SourceTitle "playchess.com"]
[Source "ChessBase"]
[SourceQuality "1"]
[TimeControl "5400+30"]

{[%evp 9,100,0,0,0,0,0,0,0,0,0,-16,-9,-15,-20,-27,-39,0,0,0,0,0,0,0,0,0,0,-14,-45,-25,-39,-46,-55,0,0,0,0,0,17,37,28,27,0,0,-9,74,47,43,13,54,-135,-129,-112,-131,-143,-145,-129,-102,-221,-57,-158,-165,-171,-189,-589,-543,-567,-588,-571,-537,-821,-792,-1099,-1075,-1114,-1107,-1113,-996,-1107,-1167,-1178,-727,-1080,-1167,-864,-837,-1400,-1204,-996,-896,-1298,-1032,-813,-780]} 1. d4 {[%emt 1:31:00]} Nf6 {[%emt 1:31:00]} 2. Bf4 {[%emt 0:00:30]} d5 {[%emt 0:00:30]} 3. e3 {[%emt 0:00:30]} c5 {[%emt 0:00:30]} 4. Nf3 {[%emt 0:00:30]} Nc6 {[%emt 0:00:30]} 5. Nbd2 {[%emt 0:00:30]} Qb6 {[%emt 0:00:30][%csl LRb2,LRd4][%cal Rc5d4]} 6. dxc5 {[%emt 0:00:30] D02: 1 d4 d5 2 Nf3 sidelines, including 2...Nf6 3 g3 and 2...Nf6 3 Bf4.} Qxb2 {[%emt 0:00:30]} 7. Rb1 {[%emt 0:00:30]} Qc3 {[%emt 0:00:30]} 8. Bb5 {[%emt 0:00:30] The position is equal.} e6 {[%emt 0:00:30] 8...g6 injects fresh life into this line.} 9. O-O {[%emt 0:00:30][%cal Oe3e4]} Be7 {[%emt 0:00:30]} 10. e4 {[%emt 0:00:30] Threatens to win with exd5.} O-O {[%emt 0:00:30]} 11. e5 {[%emt 0:00:30]} Nd7 {[%emt 0:00:30] [#]} 12. Re1 $146 {[%emt 0:00:30]} ({Predecessor:} 12. Nb3 Qb4 13. Nbd4 Qxc5 14. c3 Qxc3 15. Rb3 Qc5 16. Be3 Nxd4 17. Bxd4 Qc7 18. Bd3 {0-1 (41) Aronian,L (2782)-Ding,L (2799) Chess.com INT 2021}) 12... Nxc5 {[%emt 0:00:30]} (12... Bxc5 13. Nb3 Qb4 14. c4 $14) 13. Nb3 {[%emt 0:00:30] Inhibits Qa5.} Nxb3 {[%emt 0:00:30]} 14. Rxb3 {[%emt 0:00:30]} Qa5 {[%emt 0:00:30]} 15. Bd3 $1 {[%emt 0:00:30]} g6 {[%emt 0:00:30][%cal Bg7g6,Bg6g5][%mdl 32]} (15... Qxa2 $6 16. c3 $17) 16. Ng5 {[%emt 0:00:30][%cal Og5h7] Hoping for Nxh7!} h6 {[%emt 0:00:30]} (16... Qxa2 17. Nxh7 $1 Re8 18. Ng5 $18 (18. Nf6+ Bxf6 19. exf6 e5 $16)) 17. Nf3 {[%emt 0:00:30]} Kg7 {[%emt 0:00:30]} 18. h4 {[%emt 0:00:30]} Rh8 {[%emt 0:00:30]} 19. h5 {[%emt 0:00:30]} g5 {[%emt 0:00:30]} 20. Bd2 {[%emt 0:00:30]} Qd8 {[%emt 0:00:30]} ({Black should try} 20... Qxa2 $15 21. Nh2 b6) 21. Nh2 $11 {[%emt 0:00:30]} Nd4 {[%emt 0:00:30]} 22. Rb1 {[%emt 0:00:30]} b6 {[%emt 0:00:30]} 23. Ng4 {[%emt 0:00:30]} Bd7 {[%emt 0:00:30]} 24. Bc3 {[%emt 0:00:30][%mdl 1024] White has compensation.} Nc6 {[%emt 0:00:30]} 25. Qf3 {[%emt 0:00:30]} Rc8 {[%emt 0:00:30]} 26. Qg3 {[%emt 0:00:30]} a5 {[%emt 0:00:30]} (26... Na5 $11 27. Ba6 Rc5) 27. a3 {[%emt 0:00:30]} (27. Rf1 $5 {[%cal Rf2f4]}) 27... Bxa3 {[%emt 0:00:30]} 28. Nf6 {[%emt 0:00:30] And now f4 would win.} Bc5 $1 {[%emt 0:00:30]} 29. Nxd5 $2 {[%emt 0:00:30]} exd5 $17 {[%emt 0:00:30]} 30. e6+ {[%emt 0:00:30]} d4 {[%emt 0:00:30]} 31. exd7 {[%emt 0:00:30]} Qxd7 {[%emt 0:00:30]} ({But not} 31... dxc3 $6 32. dxc8=N Qxc8 33. Bc4 $11) 32. Bd2 {[%emt 0:00:30] [#]} Qc7 {[%emt 0:00:30]} 33. Qh3 {[%emt 0:00:30]} (33. f4 $17 {might work better.} Bb4 34. Qf2 Bxd2 35. Qxd2 Qxf4 36. Qxf4 gxf4 37. Rxb6) 33... Ne5 $2 {[%emt 0:00:30]} (33... Bb4 $19 34. Rbd1 Bxd2 35. Rxd2 Rhe8) 34. Qf5 {[%emt 0:00:30]} ({White should play} 34. f4 $15 g4 35. Qh4 (35. Qg3 Nxd3 36. Qxg4+ Kf8 $17) 35... Nxd3 36. Qxg4+ Kf8 37. cxd3) 34... Nxd3 {[%emt 0:00:30]} 35. cxd3 {[%emt 0:00:30] [#]} Rce8 $1 {[%emt 0:00:30]} 36. Bxg5 $2 {[%emt 0:00:30]} (36. f4 {is tougher.} Qc8 37. Qd5) 36... Rxe1+ $19 {[%emt 0:00:30] Black is clearly winning.} ({Don't go for} 36... hxg5 $2 37. Qxg5+ Kf8 38. Rxe8+ Kxe8 39. Qg7 $19) 37. Rxe1 {[%emt 0:00:30] White threatens Qf6+ and mate.} hxg5 {[%emt 0:00:30]} 38. Qxg5+ {[%emt 0:00:30]} Kf8 {[%emt 0:00:30] White must now prevent ...Be7.} 39. h6 {[%emt 0:00:30][%csl Gh6][%cal Rg5g7]} Rh7 {[%emt 0:00:30] Inhibits Qg7+.} 40. Qf6 {[%emt 0:00:30]} Qd6 {[%emt 0:00:30]} 41. Qf5 {[%emt 0:00:30]} Rxh6 {[%emt 0:00:30]} 42. Qc8+ {[%emt 0:00:30]} Kg7 {[%emt 0:00:30] ( -> ...Qh2+)} 43. Re8 {[%emt 0:00:30]} Qh2+ {[%emt 0:00:30]} 44. Kf1 Qh1+ {[%emt 0:00:30]} 45. Ke2 {[%emt 0:01:00]} Re6+ {[%emt 0:00:30]} 46. Rxe6 {[%emt 0:00:30]} fxe6 {[%emt 0:00:30]} 47. Qd7+ {[%emt 0:00:30]} Kf6 {[%emt 0:00:30] aiming for ...Qh5+.} 48. Qd8+ {[%emt 0:00:30]} Kf7 {[%emt 0:00:30] Strongly threatening ...Qh5+.} 49. Qd7+ {[%emt 0:00:30]} Be7 {[%emt 0:00:30]} 50. Qxd4 {[%emt 0:00:30]} Qxg2 {[%emt 0:00:30] Weighted Error Value: White=0.47/Black=0.15 (very precise)} 0-1

[Event "3rd VIZAG GM-Open 2022"]
[Site "Visakapatnam"]
[Date "2022.06.16"]
[Round "9.15"]
[White "Nguyen, Van Huy"]
[Black "Krishnan Ritvik"]
[Result "1-0"]
[ECO "E57"]
[WhiteElo "2405"]
[BlackElo "2023"]
[Annotator "TA"]
[PlyCount "103"]
[EventDate "2022.06.13"]
[EventType "swiss"]
[EventCountry "IND"]
[SourceTitle "playchess.com"]
[Source "ChessBase"]
[SourceQuality "1"]
[TimeControl "5400+30"]

{[%evp 26,103,27,8,8,9,9,12,12,9,16,0,0,-6,0,0,0,-118,-117,-119,-127,-105,-111,-114,-102,-102,-93,-122,-129,-129,-123,-113,-97,-77,-91,-133,-77,-87,-86,-110,-114,-115,-112,-107,-73,-109,-36,-24,0,-118,-115,-129,-111,-92,-73,-132,-150,-159,0,-234,0,0,0,-20,0,-4,0,0,0,0,0,-12,0,-5,1970,1390,29975,29977,29987,29988]} 1. d4 {[%emt 1:31:00]} Nf6 {[%emt 1:31:00]} 2. c4 {[%emt 0:00:30]} e6 {[%emt 0:00:30]} 3. Nf3 {[%emt 0:00:30]} d5 {[%emt 0:00:30]} 4. Nc3 {[%emt 0:00:30]} c5 {[%emt 0:00:30]} 5. e3 {[%emt 0:00:30]} Nc6 {[%emt 0:00:30]} 6. a3 {[%emt 0:00:30]} cxd4 {[%emt 0:00:30]} 7. exd4 {[%emt 0:00:30]} dxc4 {[%emt 0:00:30]} 8. Bxc4 {[%emt 0:00:30]} Be7 {[%emt 0:00:30]} 9. O-O {[%emt 0:00:30]} O-O {[%emt 0:00:30]} 10. Bg5 {[%emt 0:00:30]} Nd5 {[%emt 0:00:30]} 11. Bxd5 {[%emt 0:00:30]} exd5 {[%emt 0:00:30]} 12. Bxe7 {[%emt 0:00:30]} Nxe7 {[%emt 0:00:30]} 13. Qb3 {[%emt 0:00:30]} b6 {[%emt 0:00:30]} 14. Rfe1 {[%emt 0:00:30]} Be6 {[%emt 0:00:30] [#] E57: Nimzo-Indian: Rubinstein: Main Line: 7...Nc6 8 a3 dxc4 9 Bxc4 cxd4.} 15. h3 $146 {[%emt 0:00:30]} ({Predecessor:} 15. Rac1 Rc8 16. Qa4 Rc4 17. Qxa7 Nc6 18. Qa6 Nxd4 19. Ne5 Bc8 20. Qa8 Rc5 21. Qa4 Ne6 22. Rcd1 {1-0 (53) Milanovic,D (2485)-Froewis,G (2455) Austria 2014}) 15... Nc6 {[%emt 0:00:30][%cal Be7c6,Bc6a5,Ba5b3][%mdl 32]} 16. Rad1 {[%emt 0:00:30]} Re8 {[%emt 0:00:30] The position is equal.} 17. Ne5 {[%emt 0:00:30] Pair of Knights!} Na5 {[%emt 0:00:30]} 18. Qc2 {[%emt 0:00:30]} f6 {[%emt 0:00:30]} 19. Nf3 {[%emt 0:00:30]} Rc8 {[%emt 0:00:30]} 20. Nd2 {[%emt 0:00:30]} Qd7 {[%emt 0:00:30]} 21. Nf1 {[%emt 0:00:30]} (21. Re3 $11) 21... Bf5 $17 {[%emt 0:00:30]} 22. Qd2 {[%emt 0:00:30] [#]} Nb3 $1 {[%emt 0:00:30]} 23. Qf4 {[%emt 0:00:30]} Bc2 {[%emt 0:00:30]} 24. Ne3 {[%emt 0:00:30]} Bxd1 {[%emt 0:00:30]} 25. Rxd1 {[%emt 0:00:30]} Na5 {[%emt 0:00:30]} 26. Ncxd5 {[%emt 0:00:30]} Nc4 {[%emt 0:00:30]} 27. Nxc4 {[%emt 0:00:30]} Rxc4 {[%emt 0:00:30]} (27... Qxd5 28. Nd6 $16) 28. Ne3 {[%emt 0:00:30]} Qa4 {[%emt 0:00:30][%cal Oe8e3] Hoping for ...Rxe3!} 29. Qg4 {[%emt 0:00:30]} Rc7 {[%emt 0:00:30]} 30. h4 {[%emt 0:00:30] [#]} Qd7 {[%emt 0:00:30]} (30... Rce7 $142 $1 {[%cal Of6f5] White must now prevent ...f5!} 31. Qh5 Re4 32. Qd5+ Kh8) 31. Qf4 {[%emt 0:00:30] Inhibits f5.} Rec8 {[%emt 0:00:30]} 32. d5 {[%emt 0:00:30]} Rc1 33. Rxc1 {[%emt 0:00:30]} Rxc1+ {[%emt 0:01:00][%mdl 4096] Endgame KQR-KQN} 34. Kh2 {[%emt 0:00:30]} Rc8 {[%emt 0:00:30]} 35. h5 {[%emt 0:00:30]} Qe7 {[%emt 0:00:30]} (35... Qe8 $17 36. Qg4 Rc7) 36. Nf5 $1 $15 {[%emt 0:00:30]} Qd7 {[%emt 0:00:30]} (36... Qe2 $11 37. f3 Kh8) 37. Ne3 $17 {[%emt 0:00:30]} Qe8 {[%emt 0:00:30]} 38. Qg4 {[%emt 0:00:30]} Rc7 {[%emt 0:00:30]} 39. g3 {[%emt 0:00:30]} Qe5 {[%emt 0:00:30]} 40. h6 {[%emt 0:00:30]} (40. b3 $142) 40... g6 {[%emt 0:00:30]} ({Much worse is} 40... Qxb2 $6 41. Qe6+ Rf7 42. Nf5 Qxf2+ 43. Kh3 Qf1+ 44. Kh2 Qf2+ 45. Kh3 Qf1+ 46. Kh2 Qf2+ $11) 41. Qa4 {[%emt 0:00:30]} b5 $2 {[%emt 0:00:30]} ({Black should play} 41... Kf8 $17 42. Qb4+ Ke8) 42. Qb3 $2 {[%emt 0:00:30]} (42. Qxb5 $11 Rc1 43. Nf1) 42... Kf8 $2 {[%emt 0:00:30]} (42... Rc1 $19 {( -> ...Qh5+)} 43. Kg2 (43. d6+ $2 Kf8 $19) 43... Qh5 44. d6+ Kf8) 43. Qb4+ {[%emt 0:00:30]} Kg8 {[%emt 0:00:30]} 44. Kg2 {[%emt 0:00:30]} a6 {[%emt 0:00:30]} 45. a4 $1 {[%emt 0:00:30]} Rc1 {[%emt 0:00:30] Threatens to win with ...Qh5.} 46. Qd2 $1 {[%emt 0:00:30]} Rc8 {[%emt 0:00:30]} 47. axb5 {[%emt 0:00:30]} axb5 {[%emt 0:00:30]} 48. Qb4 {[%emt 0:00:30] Prevents Qe4+.} Rc1 {[%emt 0:00:30] And now ...Qh5 would win.} 49. Qd2 $1 {[%emt 0:00:30]} Qe4+ $2 {[%emt 0:00:30][%mdl 8192]} (49... Ra1 $11 50. Nc2 Ra2) 50. f3 $18 {[%emt 0:00:30]} Qb1 {[%emt 0:00:30]} 51. d6 {[%emt 0:00:30]} Rg1+ {[%emt 0:00:30]} 52. Kf2 {[%emt 0:00:30] White used his chance.  Weighted Error Value: White=0.25 (precise) /Black=0.42} 1-0